[Event "Early-Titled-Tuesday-Blitz-March-26-2024"]
[Site "Chess.com"]
[Date "2024.03.26"]
[Round "4"]
[White "guillembaches"]
[Black "AlexeiShirov"]
[Result "0-1"]
[WhiteElo "2536"]
[BlackElo "2843"]
[TimeControl "180+1"]
[EndTime "8:39:50 PDT"]
[Termination "AlexeiShirov won on time"]

1. d4 {[%clk 0:03:00.9]} 1... d5 {[%clk 0:02:59.1]} 2. Nf3 {[%clk 0:03:01.4]}
2... Nf6 {[%clk 0:02:58.2]} 3. Bg5 {[%clk 0:02:59.1]} 3... e6 {[%clk 0:02:51.9]}
4. Nbd2 {[%clk 0:02:58.3]} 4... c5 {[%clk 0:02:51]} 5. e3 {[%clk 0:02:58.3]}
5... h6 {[%clk 0:02:46.4]} 6. Bh4 {[%clk 0:02:57.9]} 6... Qb6 {[%clk 0:02:38.1]}
7. Rb1 {[%clk 0:02:54.7]} 7... Nc6 {[%clk 0:02:27.5]} 8. c3 {[%clk 0:02:54.7]}
8... cxd4 {[%clk 0:02:26.6]} 9. exd4 {[%clk 0:02:54.4]} 9... Ne4 {[%clk
0:02:24.6]} 10. Nxe4 {[%clk 0:02:29.8]} 10... dxe4 {[%clk 0:02:23.6]} 11. Ne5
{[%clk 0:02:30.1]} 11... Nxe5 {[%clk 0:02:22.6]} 12. dxe5 {[%clk 0:02:30.7]}
12... Bd7 {[%clk 0:02:22.2]} 13. Be2 {[%clk 0:02:19.2]} 13... Qc7 {[%clk
0:02:03.4]} 14. Bg3 {[%clk 0:02:09.1]} 14... Be7 {[%clk 0:01:50.4]} 15. O-O
{[%clk 0:01:59.2]} 15... O-O {[%clk 0:01:49.4]} 16. Qb3 {[%clk 0:01:53]} 16...
a5 {[%clk 0:01:36.9]} 17. a4 {[%clk 0:01:47]} 17... Bc6 {[%clk 0:01:33.5]} 18.
Bb5 {[%clk 0:01:43.9]} 18... Rfd8 {[%clk 0:01:31.1]} 19. Rfd1 {[%clk 0:01:38.6]}
19... Bc5 {[%clk 0:01:29.9]} 20. Qc4 {[%clk 0:01:27]} 20... Bxb5 {[%clk
0:01:26.3]} 21. Qxb5 {[%clk 0:01:27.3]} 21... e3 {[%clk 0:01:25.9]} 22. fxe3
{[%clk 0:01:24.9]} 22... Bxe3+ {[%clk 0:01:24.7]} 23. Kh1 {[%clk 0:01:25.4]}
23... Rxd1+ {[%clk 0:01:08.5]} 24. Rxd1 {[%clk 0:01:24.9]} 24... Rd8 {[%clk
0:01:08]} 25. Rd6 {[%clk 0:01:05.5]} 25... Bg5 {[%clk 0:00:48.7]} 26. h3 {[%clk
0:00:59.2]} 26... Be7 {[%clk 0:00:47.5]} 27. Rxd8+ {[%clk 0:00:49.2]} 27... Bxd8
{[%clk 0:00:44.6]} 28. Qd3 {[%clk 0:00:42.1]} 28... Be7 {[%clk 0:00:42.8]} 29.
Bf4 {[%clk 0:00:32.8]} 29... Qc6 {[%clk 0:00:41.7]} 30. Qd4 {[%clk 0:00:23.4]}
30... Bc5 {[%clk 0:00:37.8]} 31. Qc4 {[%clk 0:00:20.9]} 31... Qb6 {[%clk
0:00:36.4]} 32. b3 {[%clk 0:00:17.5]} 32... Bf2 {[%clk 0:00:34.8]} 33. b4 {[%clk
0:00:14.6]} 33... Qd8 {[%clk 0:00:33.5]} 34. Qe2 {[%clk 0:00:11.1]} 34... Ba7
{[%clk 0:00:32.2]} 35. Be3 {[%clk 0:00:07.3]} 35... Bxe3 {[%clk 0:00:28.4]} 36.
Qxe3 {[%clk 0:00:07.8]} 36... axb4 {[%clk 0:00:28.1]} 37. cxb4 {[%clk
0:00:07.2]} 37... Qd1+ {[%clk 0:00:28.6]} 38. Kh2 {[%clk 0:00:07.6]} 38... Qxa4
{[%clk 0:00:29.1]} 39. Qc5 {[%clk 0:00:08]} 39... Qc6 {[%clk 0:00:28.4]} 40. Qe7
{[%clk 0:00:07.5]} 40... Qb5 {[%clk 0:00:23.4]} 41. Qd6 {[%clk 0:00:06.5]} 41...
Qd5 {[%clk 0:00:23]} 42. Qc7 {[%clk 0:00:05]} 42... b5 {[%clk 0:00:21.5]} 43.
Qc3 {[%clk 0:00:03.9]} 43... Kh7 {[%clk 0:00:18.6]} 44. g3 {[%clk 0:00:04.4]}
44... Qc4 {[%clk 0:00:17.8]} 45. Qd2 {[%clk 0:00:03.5]} 45... Qe4 {[%clk
0:00:17.3]} 46. Qb2 {[%clk 0:00:03.3]} 46... Kg6 {[%clk 0:00:16.5]} 47. h4
{[%clk 0:00:03.8]} 47... Kf5 {[%clk 0:00:15.7]} 48. Qc3 {[%clk 0:00:04.3]} 48...
Qe2+ {[%clk 0:00:14.8]} 49. Kh3 {[%clk 0:00:04.2]} 49... Qf1+ {[%clk 0:00:13.9]}
50. Kh2 {[%clk 0:00:04.5]} 50... h5 {[%clk 0:00:13.5]} 51. Qc2+ {[%clk
0:00:04.4]} 51... Kxe5 {[%clk 0:00:13.3]} 52. Qc3+ {[%clk 0:00:04.4]} 52... Kf5
{[%clk 0:00:13]} 53. Qxg7 {[%clk 0:00:04.8]} 53... Qf2+ {[%clk 0:00:11.9]} 54.
Kh1 {[%clk 0:00:05.2]} 54... Qf1+ {[%clk 0:00:11.5]} 55. Kh2 {[%clk 0:00:04.3]}
55... Qe2+ {[%clk 0:00:11.3]} 56. Kh1 {[%clk 0:00:04.1]} 56... Qd1+ {[%clk
0:00:10.8]} 57. Kh2 {[%clk 0:00:04.2]} 57... f6 {[%clk 0:00:10.6]} 58. Qh7+
{[%clk 0:00:04.1]} 58... Ke5 {[%clk 0:00:10.3]} 59. Qc7+ {[%clk 0:00:03.9]}
59... Ke4 {[%clk 0:00:09.8]} 60. Qc5 {[%clk 0:00:04.2]} 60... Qe2+ {[%clk
0:00:08.6]} 61. Kh1 {[%clk 0:00:04]} 61... Qc4 {[%clk 0:00:07.6]} 62. Qf2 {[%clk
0:00:03.9]} 62... f5 {[%clk 0:00:06.6]} 63. Qf4+ {[%clk 0:00:04]} 63... Kd3
{[%clk 0:00:06.5]} 64. Qg5 {[%clk 0:00:04.4]} 64... Ke2 {[%clk 0:00:05.9]} 65.
Kg2 {[%clk 0:00:04.4]} 65... Qe4+ {[%clk 0:00:05.6]} 66. Kh2 {[%clk 0:00:04.5]}
66... Kf2 {[%clk 0:00:05.3]} 67. Qd2+ {[%clk 0:00:05]} 67... Qe2 {[%clk
0:00:04.8]} 68. Qf4+ {[%clk 0:00:05.5]} 68... Ke1+ {[%clk 0:00:04.6]} 69. Kh3
{[%clk 0:00:04.5]} 69... Qf1+ {[%clk 0:00:04.5]} 70. Qxf1+ {[%clk 0:00:04.3]}
70... Kxf1 {[%clk 0:00:04.6]} 71. Kh2 {[%clk 0:00:04.8]} 71... e5 {[%clk
0:00:04.4]} 72. Kh3 {[%clk 0:00:05.3]} 72... e4 {[%clk 0:00:04.5]} 73. g4 {[%clk
0:00:06]} 73... fxg4+ {[%clk 0:00:04.3]} 74. Kg3 {[%clk 0:00:06.3]} 74... e3
{[%clk 0:00:04.8]} 75. Kf4 {[%clk 0:00:07.2]} 75... e2 {[%clk 0:00:05.2]} 76.
Ke3 {[%clk 0:00:08.1]} 76... e1=Q+ {[%clk 0:00:05.4]} 0-1

[Event "Early-Titled-Tuesday-Blitz-March-26-2024"]
[Site "Chess.com"]
[Date "2024.03.26"]
[Round "4"]
[White "sergoy"]
[Black "Dixit_Nikhil"]
[Result "1/2-1/2"]
[WhiteElo "2914"]
[BlackElo "2639"]
[TimeControl "180+1"]
[EndTime "8:39:56 PDT"]
[Termination "Game drawn by repetition"]

1. d4 {[%clk 0:03:00.9]} 1... Nf6 {[%clk 0:03:00]} 2. c4 {[%clk 0:03:01.1]} 2...
g6 {[%clk 0:03:00.6]} 3. Nc3 {[%clk 0:03:00.8]} 3... Bg7 {[%clk 0:03:01.1]} 4.
e4 {[%clk 0:03:01.4]} 4... d6 {[%clk 0:03:01.6]} 5. Nf3 {[%clk 0:03:02.1]} 5...
O-O {[%clk 0:03:02]} 6. Be2 {[%clk 0:03:02.8]} 6... e5 {[%clk 0:03:02.4]} 7. O-O
{[%clk 0:03:03.1]} 7... exd4 {[%clk 0:03:03]} 8. Nxd4 {[%clk 0:03:03.3]} 8...
Re8 {[%clk 0:03:03.7]} 9. f3 {[%clk 0:03:03.4]} 9... c6 {[%clk 0:03:04.3]} 10.
Kh1 {[%clk 0:03:03.1]} 10... d5 {[%clk 0:03:02.4]} 11. cxd5 {[%clk 0:03:01.7]}
11... cxd5 {[%clk 0:03:02.9]} 12. Bg5 {[%clk 0:03:02.4]} 12... Nc6 {[%clk
0:03:03.1]} 13. Bb5 {[%clk 0:03:03]} 13... Bd7 {[%clk 0:02:54.2]} 14. exd5
{[%clk 0:02:58.5]} 14... Nxd4 {[%clk 0:02:44.9]} 15. Qxd4 {[%clk 0:02:59.4]}
15... Bxb5 {[%clk 0:02:24.4]} 16. Nxb5 {[%clk 0:03:00.3]} 16... h6 {[%clk
0:02:24.9]} 17. Bxf6 {[%clk 0:02:53.3]} 17... Bxf6 {[%clk 0:02:23.7]} 18. Qd2
{[%clk 0:02:53.8]} 18... Qb6 {[%clk 0:02:19.7]} 19. Nc3 {[%clk 0:02:52]} 19...
Kg7 {[%clk 0:02:18]} 20. Rad1 {[%clk 0:02:51.6]} 20... Rad8 {[%clk 0:02:13.8]}
21. b3 {[%clk 0:02:49.3]} 21... Bxc3 {[%clk 0:02:06.6]} 22. Qxc3+ {[%clk
0:02:49.3]} 22... Qf6 {[%clk 0:02:07.3]} 23. Qb4 {[%clk 0:02:49.1]} 23... Rd7
{[%clk 0:02:03.3]} 24. Rd3 {[%clk 0:02:42]} 24... Red8 {[%clk 0:02:02.2]} 25.
Qd2 {[%clk 0:02:35.8]} 25... Rd6 {[%clk 0:01:50.5]} 26. Rd1 {[%clk 0:02:34.7]}
26... h5 {[%clk 0:01:50.9]} 27. h3 {[%clk 0:02:30.9]} 27... Qf5 {[%clk 0:01:50]}
28. Rd4 {[%clk 0:02:26.5]} 28... Qf6 {[%clk 0:01:49.4]} 29. Qb4 {[%clk
0:02:24.6]} 29... b6 {[%clk 0:01:47.7]} 30. Qd2 {[%clk 0:02:20.4]} 30... Qe5
{[%clk 0:01:46.9]} 31. a4 {[%clk 0:02:07.6]} 31... Qf6 {[%clk 0:01:46.2]} 32. b4
{[%clk 0:02:07.1]} 32... Qe5 {[%clk 0:01:44.6]} 33. a5 {[%clk 0:02:07.1]} 33...
bxa5 {[%clk 0:01:43.8]} 34. bxa5 {[%clk 0:02:08]} 34... a6 {[%clk 0:01:44.4]}
35. Qd3 {[%clk 0:01:58.6]} 35... Qf6 {[%clk 0:01:42.6]} 36. Qc4 {[%clk
0:01:58.7]} 36... Qe5 {[%clk 0:01:41.6]} 37. R4d2 {[%clk 0:01:58.2]} 37... Qf6
{[%clk 0:01:41.6]} 38. Rd4 {[%clk 0:01:47.8]} 38... Qe5 {[%clk 0:01:32.9]} 39.
Re4 {[%clk 0:01:46.8]} 39... Qf6 {[%clk 0:01:32]} 40. Rd3 {[%clk 0:01:40.6]}
40... Qa1+ {[%clk 0:01:31.2]} 41. Kh2 {[%clk 0:01:38.1]} 41... Qf6 {[%clk
0:01:01.9]} 42. f4 {[%clk 0:01:31.8]} 42... Qf5 {[%clk 0:01:00.4]} 43. Re5
{[%clk 0:01:31.7]} 43... Qf6 {[%clk 0:01:00.6]} 44. Qe4 {[%clk 0:01:32.2]} 44...
h4 {[%clk 0:00:57.2]} 45. Qd4 {[%clk 0:01:22.9]} 45... R8d7 {[%clk 0:00:55.1]}
46. Qe4 {[%clk 0:01:02.6]} 46... Rc7 {[%clk 0:00:42.4]} 47. Rb3 {[%clk
0:00:44.4]} 47... Rc1 {[%clk 0:00:39.2]} 48. Rb7 {[%clk 0:00:40.5]} 48... Rf1
{[%clk 0:00:35]} 49. Rb4 {[%clk 0:00:37.9]} 49... Rd7 {[%clk 0:00:21]} 50. Rc4
{[%clk 0:00:35.8]} 50... Rb7 {[%clk 0:00:20.7]} 51. Rb4 {[%clk 0:00:27.7]} 51...
Rxb4 {[%clk 0:00:18.5]} 52. Qxb4 {[%clk 0:00:28.6]} 52... Rxf4 {[%clk
0:00:18.9]} 53. Qb8 {[%clk 0:00:24.6]} 53... Rb4 {[%clk 0:00:09.8]} 54. Qxb4
{[%clk 0:00:18.1]} 54... Qxe5+ {[%clk 0:00:10.2]} 55. Kh1 {[%clk 0:00:17.1]}
55... Qxd5 {[%clk 0:00:10.8]} 56. Qb6 {[%clk 0:00:16.3]} 56... Qd1+ {[%clk
0:00:10]} 57. Kh2 {[%clk 0:00:16.5]} 57... Qf1 {[%clk 0:00:09.7]} 58. Qd4+
{[%clk 0:00:15.8]} 58... Qf6 {[%clk 0:00:09.2]} 59. Qb6 {[%clk 0:00:12.3]} 59...
g5 {[%clk 0:00:09.4]} 60. Kh1 {[%clk 0:00:11.2]} 60... Kg6 {[%clk 0:00:09.9]}
61. Qb1+ {[%clk 0:00:10.6]} 61... Kg7 {[%clk 0:00:10.1]} 62. Qb6 {[%clk
0:00:11.1]} 62... Qf1+ {[%clk 0:00:10.2]} 63. Kh2 {[%clk 0:00:10.8]} 63... Qf4+
{[%clk 0:00:10.7]} 64. Kh1 {[%clk 0:00:11.2]} 64... Qc4 {[%clk 0:00:11.2]} 65.
Qb2+ {[%clk 0:00:10.4]} 65... f6 {[%clk 0:00:10.3]} 66. Qd2 {[%clk 0:00:08.8]}
66... Qb5 {[%clk 0:00:09.7]} 67. Qd8 {[%clk 0:00:07.9]} 67... Qb1+ {[%clk
0:00:09.3]} 68. Kh2 {[%clk 0:00:07.9]} 68... Qb5 {[%clk 0:00:09.2]} 69. Qb6
{[%clk 0:00:06.9]} 69... Qe5+ {[%clk 0:00:08.7]} 70. Kh1 {[%clk 0:00:06.9]}
70... Kg6 {[%clk 0:00:08.7]} 71. Qxa6 {[%clk 0:00:06.8]} 71... Qe1+ {[%clk
0:00:08.1]} 72. Kh2 {[%clk 0:00:07.3]} 72... Qe5+ {[%clk 0:00:07.4]} 73. Kg1
{[%clk 0:00:07.6]} 73... Qe1+ {[%clk 0:00:07]} 74. Kh2 {[%clk 0:00:05]} 74...
Qg3+ {[%clk 0:00:07.3]} 75. Kg1 {[%clk 0:00:04.8]} 75... Qe1+ {[%clk 0:00:08.1]}
76. Kh2 {[%clk 0:00:05.1]} 1/2-1/2

[Event "Early-Titled-Tuesday-Blitz-March-26-2024"]
[Site "Chess.com"]
[Date "2024.03.26"]
[Round "4"]
[White "KarolKacprzak"]
[Black "whiteglovethief"]
[Result "1/2-1/2"]
[WhiteElo "2708"]
[BlackElo "2520"]
[TimeControl "180+1"]
[EndTime "8:39:59 PDT"]
[Termination "Game drawn - insufficient material"]

1. e4 {[%clk 0:02:54.5]} 1... e6 {[%clk 0:02:52.9]} 2. d4 {[%clk 0:02:54.2]}
2... d5 {[%clk 0:02:53.6]} 3. e5 {[%clk 0:02:54.9]} 3... c6 {[%clk 0:02:53.8]}
4. c4 {[%clk 0:02:46]} 4... b6 {[%clk 0:02:43.3]} 5. cxd5 {[%clk 0:02:36.9]}
5... cxd5 {[%clk 0:02:41.2]} 6. Nc3 {[%clk 0:02:37.1]} 6... Ne7 {[%clk
0:02:39.1]} 7. Nf3 {[%clk 0:02:35]} 7... Bd7 {[%clk 0:02:39.1]} 8. Bd3 {[%clk
0:02:33.4]} 8... Nbc6 {[%clk 0:02:36]} 9. h4 {[%clk 0:02:29.5]} 9... Nf5 {[%clk
0:02:33.7]} 10. Bxf5 {[%clk 0:02:21.1]} 10... exf5 {[%clk 0:02:34.6]} 11. Nxd5
{[%clk 0:02:21.3]} 11... Be6 {[%clk 0:02:33.1]} 12. Nf4 {[%clk 0:02:10.4]} 12...
Bb4+ {[%clk 0:02:30]} 13. Bd2 {[%clk 0:02:10.6]} 13... Bxd2+ {[%clk 0:02:27.7]}
14. Qxd2 {[%clk 0:02:11.5]} 14... Bd5 {[%clk 0:02:25.3]} 15. Nxd5 {[%clk
0:02:04.1]} 15... Qxd5 {[%clk 0:02:26.2]} 16. O-O {[%clk 0:02:01.4]} 16... O-O
{[%clk 0:02:26]} 17. h5 {[%clk 0:01:58.4]} 17... h6 {[%clk 0:02:24.3]} 18. Qf4
{[%clk 0:01:57.5]} 18... Rad8 {[%clk 0:02:21.9]} 19. Rfd1 {[%clk 0:01:57.2]}
19... Qe4 {[%clk 0:02:19.1]} 20. g3 {[%clk 0:01:38.2]} 20... Qxf4 {[%clk
0:02:15.8]} 21. gxf4 {[%clk 0:01:36.2]} 21... Nb4 {[%clk 0:02:15.9]} 22. Kg2
{[%clk 0:01:33.8]} 22... Rd7 {[%clk 0:02:12.5]} 23. Nh4 {[%clk 0:01:29.3]} 23...
Nc2 {[%clk 0:02:06.3]} 24. Rac1 {[%clk 0:01:29.1]} 24... Nxd4 {[%clk 0:02:04.7]}
25. Nxf5 {[%clk 0:01:28.6]} 25... Rfd8 {[%clk 0:02:03.5]} 26. Rxd4 {[%clk
0:01:23.4]} 26... Rxd4 {[%clk 0:02:04.4]} 27. Nxd4 {[%clk 0:01:23.9]} 27... Rxd4
{[%clk 0:02:04.8]} 28. Rc8+ {[%clk 0:01:24.8]} 28... Kh7 {[%clk 0:02:04.8]} 29.
Kf3 {[%clk 0:01:17]} 29... Rd3+ {[%clk 0:02:04.5]} 30. Kg2 {[%clk 0:01:11]}
30... Rd2 {[%clk 0:02:02.4]} 31. Rc7 {[%clk 0:01:11.3]} 31... Kg8 {[%clk
0:02:00.3]} 32. Rxa7 {[%clk 0:01:10.1]} 32... Rxb2 {[%clk 0:02:00.3]} 33. Kg3
{[%clk 0:01:09.6]} 33... Kf8 {[%clk 0:01:55.6]} 34. f5 {[%clk 0:01:06.2]} 34...
Rb5 {[%clk 0:01:50.1]} 35. f4 {[%clk 0:01:05.8]} 35... Rb1 {[%clk 0:01:33.1]}
36. f6 {[%clk 0:00:50.3]} 36... gxf6 {[%clk 0:01:31.4]} 37. exf6 {[%clk
0:00:51.2]} 37... Ke8 {[%clk 0:01:22.5]} 38. Re7+ {[%clk 0:00:50.9]} 38... Kf8
{[%clk 0:01:22.9]} 39. Kg4 {[%clk 0:00:46.1]} 39... Rb5 {[%clk 0:01:19.7]} 40.
a4 {[%clk 0:00:43]} 40... Ra5 {[%clk 0:01:17.8]} 41. Rb7 {[%clk 0:00:38]} 41...
Ke8 {[%clk 0:01:16.8]} 42. Rxb6 {[%clk 0:00:34.5]} 42... Rxa4 {[%clk 0:01:16.8]}
43. Rb8+ {[%clk 0:00:35.4]} 43... Kd7 {[%clk 0:01:15.9]} 44. Rh8 {[%clk
0:00:34.9]} 44... Ke6 {[%clk 0:01:14]} 45. Rxh6 {[%clk 0:00:34.1]} 45... Ra8
{[%clk 0:01:14.1]} 46. Kg5 {[%clk 0:00:21.4]} 46... Ra5+ {[%clk 0:01:07]} 47.
Kg4 {[%clk 0:00:17.9]} 47... Ra8 {[%clk 0:01:06.3]} 48. Rh7 {[%clk 0:00:18.3]}
48... Kxf6 {[%clk 0:01:05.2]} 49. Rh6+ {[%clk 0:00:19]} 49... Kg7 {[%clk
0:01:05.1]} 50. Rb6 {[%clk 0:00:19.1]} 50... Ra1 {[%clk 0:01:05]} 51. Rc6 {[%clk
0:00:14.6]} 51... Rg1+ {[%clk 0:01:03]} 52. Kf5 {[%clk 0:00:14.7]} 52... Rh1
{[%clk 0:01:01.9]} 53. Kg5 {[%clk 0:00:13.5]} 53... f6+ {[%clk 0:00:59.1]} 54.
Kg4 {[%clk 0:00:12.9]} 54... Rh2 {[%clk 0:00:53]} 55. Rb6 {[%clk 0:00:12.7]}
55... Rh1 {[%clk 0:00:46.8]} 56. Rb7+ {[%clk 0:00:09.7]} 56... Kh6 {[%clk
0:00:38.1]} 57. Rf7 {[%clk 0:00:09.6]} 57... Rxh5 {[%clk 0:00:31]} 58. Rxf6+
{[%clk 0:00:05.2]} 58... Kg7 {[%clk 0:00:31.4]} 59. Ra6 {[%clk 0:00:05.7]} 59...
Rb5 {[%clk 0:00:30.8]} 60. Ra7+ {[%clk 0:00:05.7]} 60... Kf6 {[%clk 0:00:30.5]}
61. Ra6+ {[%clk 0:00:06.6]} 61... Kf7 {[%clk 0:00:30.9]} 62. Rc6 {[%clk
0:00:06.5]} 62... Ra5 {[%clk 0:00:30.4]} 63. f5 {[%clk 0:00:06.4]} 63... Ra1
{[%clk 0:00:28]} 64. Rc4 {[%clk 0:00:07]} 64... Rg1+ {[%clk 0:00:27.4]} 65. Kf4
{[%clk 0:00:06.6]} 65... Rf1+ {[%clk 0:00:25.1]} 66. Kg5 {[%clk 0:00:07.1]}
66... Rg1+ {[%clk 0:00:25.4]} 67. Rg4 {[%clk 0:00:07.8]} 67... Rxg4+ {[%clk
0:00:25.4]} 68. Kxg4 {[%clk 0:00:08.7]} 68... Kf6 {[%clk 0:00:25.6]} 69. Kf4
{[%clk 0:00:09.6]} 69... Kf7 {[%clk 0:00:25.8]} 70. Kg5 {[%clk 0:00:10.5]} 70...
Kg7 {[%clk 0:00:26.1]} 71. Kg4 {[%clk 0:00:10.7]} 71... Kf6 {[%clk 0:00:26.1]}
72. Kf4 {[%clk 0:00:11.6]} 72... Kf7 {[%clk 0:00:26.1]} 73. Ke5 {[%clk
0:00:12.1]} 73... Ke7 {[%clk 0:00:26.3]} 74. f6+ {[%clk 0:00:13]} 74... Kf7
{[%clk 0:00:26.8]} 75. Kf5 {[%clk 0:00:13.9]} 75... Kf8 {[%clk 0:00:27.3]} 76.
Kg6 {[%clk 0:00:14.2]} 76... Kg8 {[%clk 0:00:27.6]} 77. Kh5 {[%clk 0:00:13.4]}
77... Kf7 {[%clk 0:00:27.9]} 78. Kg5 {[%clk 0:00:13.7]} 78... Kf8 {[%clk
0:00:27.6]} 79. Kf4 {[%clk 0:00:14.5]} 79... Kf7 {[%clk 0:00:28]} 80. Ke5 {[%clk
0:00:13.7]} 80... Kf8 {[%clk 0:00:28.2]} 81. Ke6 {[%clk 0:00:14.2]} 81... Ke8
{[%clk 0:00:28.7]} 82. Kf5 {[%clk 0:00:14.4]} 82... Kf7 {[%clk 0:00:29]} 83. Kg5
{[%clk 0:00:14.9]} 83... Kf8 {[%clk 0:00:29.1]} 84. Kg4 {[%clk 0:00:15.5]} 84...
Kf7 {[%clk 0:00:29.5]} 85. Kf5 {[%clk 0:00:16.2]} 85... Kf8 {[%clk 0:00:29.9]}
86. Kg6 {[%clk 0:00:16.3]} 86... Kg8 {[%clk 0:00:30.2]} 87. f7+ {[%clk
0:00:16.7]} 87... Kf8 {[%clk 0:00:21.6]} 88. Kh5 {[%clk 0:00:03.6]} 88... Kg7
{[%clk 0:00:16.5]} 89. Kg5 {[%clk 0:00:02.8]} 89... Kxf7 {[%clk 0:00:15.4]}
1/2-1/2

[Event "Early-Titled-Tuesday-Blitz-March-26-2024"]
[Site "Chess.com"]
[Date "2024.03.26"]
[Round "4"]
[White "ACollins05"]
[Black "astralpulse"]
[Result "1/2-1/2"]
[WhiteElo "2508"]
[BlackElo "2641"]
[TimeControl "180+1"]
[EndTime "8:40:03 PDT"]
[Termination "Game drawn by stalemate"]

1. Nf3 {[%clk 0:03:00.9]} 1... d5 {[%clk 0:02:59.1]} 2. e3 {[%clk 0:03:01.1]}
2... c6 {[%clk 0:02:56.2]} 3. b3 {[%clk 0:03:00.7]} 3... Nf6 {[%clk 0:02:54.1]}
4. Bb2 {[%clk 0:03:01.1]} 4... g6 {[%clk 0:02:54.1]} 5. d4 {[%clk 0:03:01]} 5...
Bg7 {[%clk 0:02:53.6]} 6. c4 {[%clk 0:03:01.6]} 6... O-O {[%clk 0:02:52.7]} 7.
Nc3 {[%clk 0:03:02.2]} 7... Bf5 {[%clk 0:02:48.1]} 8. Bd3 {[%clk 0:03:02.3]}
8... Bxd3 {[%clk 0:02:44.9]} 9. Qxd3 {[%clk 0:03:02.8]} 9... e6 {[%clk
0:02:43.7]} 10. O-O {[%clk 0:03:02.6]} 10... Nbd7 {[%clk 0:02:43.6]} 11. e4
{[%clk 0:03:03]} 11... dxe4 {[%clk 0:02:34.4]} 12. Nxe4 {[%clk 0:03:03.9]} 12...
Nxe4 {[%clk 0:02:31.4]} 13. Qxe4 {[%clk 0:03:04.8]} 13... Re8 {[%clk 0:02:23.1]}
14. Rfd1 {[%clk 0:03:02.2]} 14... Qb6 {[%clk 0:02:21.5]} 15. Ne5 {[%clk
0:02:59.3]} 15... Nxe5 {[%clk 0:02:11.3]} 16. dxe5 {[%clk 0:03:00.2]} 16... Red8
{[%clk 0:02:09.3]} 17. Rd4 {[%clk 0:02:56.6]} 17... Rxd4 {[%clk 0:02:00]} 18.
Bxd4 {[%clk 0:02:56.1]} 18... Qa5 {[%clk 0:01:59.3]} 19. Qe3 {[%clk 0:02:51.1]}
19... Rd8 {[%clk 0:01:51.7]} 20. g3 {[%clk 0:02:29.7]} 20... Rxd4 {[%clk
0:01:39.5]} 21. Qxd4 {[%clk 0:02:24.6]} 21... Bxe5 {[%clk 0:01:39.2]} 22. Qd1
{[%clk 0:02:20.1]} 22... Bxa1 {[%clk 0:01:38.8]} 23. Qxa1 {[%clk 0:02:21]} 23...
e5 {[%clk 0:01:21]} 24. h4 {[%clk 0:02:10]} 24... h5 {[%clk 0:01:17.7]} 25. Qb2
{[%clk 0:02:03.1]} 25... Qc5 {[%clk 0:01:15.9]} 26. Qd2 {[%clk 0:01:58]} 26...
Kg7 {[%clk 0:01:13.9]} 27. Qd7 {[%clk 0:01:57]} 27... b5 {[%clk 0:01:05.8]} 28.
cxb5 {[%clk 0:01:55.8]} 28... cxb5 {[%clk 0:01:05.4]} 29. a4 {[%clk 0:01:51.8]}
29... bxa4 {[%clk 0:01:00.4]} 30. bxa4 {[%clk 0:01:52.7]} 30... Qd4 {[%clk
0:00:52.5]} 31. Qb5 {[%clk 0:01:41.3]} 31... e4 {[%clk 0:00:48.2]} 32. Qe8
{[%clk 0:01:37.1]} 32... Qd5 {[%clk 0:00:40.3]} 33. Kh2 {[%clk 0:00:57.2]} 33...
Qf5 {[%clk 0:00:38]} 34. Kg1 {[%clk 0:00:53.5]} 34... Qd5 {[%clk 0:00:37.5]} 35.
Kh2 {[%clk 0:00:53]} 35... a5 {[%clk 0:00:37.2]} 36. Kg1 {[%clk 0:00:50]} 36...
Kf6 {[%clk 0:00:35.5]} 37. Qh8+ {[%clk 0:00:48.6]} 37... Ke6 {[%clk 0:00:35.2]}
38. Qe8+ {[%clk 0:00:47.1]} 38... Kd6 {[%clk 0:00:34.7]} 39. Kf1 {[%clk
0:00:40.6]} 39... Qf5 {[%clk 0:00:29.4]} 40. Kg1 {[%clk 0:00:34.2]} 40... Kc5
{[%clk 0:00:27.7]} 41. Qb5+ {[%clk 0:00:33.1]} 41... Kd4 {[%clk 0:00:28]} 42.
Qb6+ {[%clk 0:00:30.7]} 42... Kc4 {[%clk 0:00:26]} 43. Kg2 {[%clk 0:00:25.3]}
43... Qd5 {[%clk 0:00:25.3]} 44. Kg1 {[%clk 0:00:23.4]} 44... Kc3 {[%clk
0:00:23.7]} 45. Kf1 {[%clk 0:00:19.7]} 45... Qc4+ {[%clk 0:00:22.5]} 46. Kg1
{[%clk 0:00:18.1]} 46... Qxa4 {[%clk 0:00:21.5]} 47. Qc7+ {[%clk 0:00:18.2]}
47... Qc4 {[%clk 0:00:20.3]} 48. Qxa5+ {[%clk 0:00:17.5]} 48... Kd3 {[%clk
0:00:20.5]} 49. Qa3+ {[%clk 0:00:15.7]} 49... Qc3 {[%clk 0:00:18.1]} 50. Qa6+
{[%clk 0:00:13.7]} 50... Qc4 {[%clk 0:00:17.7]} 51. Qa3+ {[%clk 0:00:13]} 51...
Kd4 {[%clk 0:00:18.3]} 52. Qd6+ {[%clk 0:00:12.2]} 52... Qd5 {[%clk 0:00:19]}
53. Qf6+ {[%clk 0:00:12]} 53... Kd3 {[%clk 0:00:18.6]} 54. Qa6+ {[%clk
0:00:11.6]} 54... Qc4 {[%clk 0:00:18]} 55. Qd6+ {[%clk 0:00:11.5]} 55... Ke2
{[%clk 0:00:17.7]} 56. Qa3 {[%clk 0:00:09.1]} 56... Qd3 {[%clk 0:00:16.8]} 57.
Qb2+ {[%clk 0:00:08.2]} 57... Kf3 {[%clk 0:00:16.2]} 58. Qf6+ {[%clk 0:00:07.3]}
58... Kg4 {[%clk 0:00:15.3]} 59. Qxf7 {[%clk 0:00:05.6]} 59... Qd1+ {[%clk
0:00:13]} 60. Kh2 {[%clk 0:00:04.6]} 60... g5 {[%clk 0:00:10]} 61. hxg5 {[%clk
0:00:04]} 61... h4 {[%clk 0:00:09.3]} 62. Qf4+ {[%clk 0:00:04]} 62... Kh5 {[%clk
0:00:09.7]} 63. Qxh4+ {[%clk 0:00:04.5]} 63... Kg6 {[%clk 0:00:10.5]} 64. Qh6+
{[%clk 0:00:05.1]} 64... Kf5 {[%clk 0:00:09.6]} 65. Qf6+ {[%clk 0:00:05.6]}
65... Kg4 {[%clk 0:00:10]} 66. g6 {[%clk 0:00:05.6]} 66... Qd5 {[%clk
0:00:06.3]} 67. g7 {[%clk 0:00:03.9]} 67... Qh5+ {[%clk 0:00:07.2]} 68. Kg1
{[%clk 0:00:03.6]} 68... Qe8 {[%clk 0:00:07.6]} 69. Qf4+ {[%clk 0:00:02.4]}
69... Kh5 {[%clk 0:00:07]} 70. g4+ {[%clk 0:00:03]} 70... Kh4 {[%clk 0:00:07.1]}
71. Qf5 {[%clk 0:00:03.1]} 71... e3 {[%clk 0:00:04.7]} 72. Qh5+ {[%clk
0:00:03.6]} 72... Qxh5 {[%clk 0:00:03.7]} 73. gxh5 {[%clk 0:00:04.5]} 73... e2
{[%clk 0:00:04.2]} 74. g8=Q {[%clk 0:00:05.1]} 74... e1=Q+ {[%clk 0:00:05]} 75.
Kg2 {[%clk 0:00:05.3]} 75... Qe4+ {[%clk 0:00:05.6]} 76. Kh2 {[%clk 0:00:05.2]}
76... Qe5+ {[%clk 0:00:04.7]} 77. Kg2 {[%clk 0:00:04.8]} 77... Qe4+ {[%clk
0:00:04.8]} 78. Kf1 {[%clk 0:00:05]} 78... Qd3+ {[%clk 0:00:04.9]} 79. Kg1
{[%clk 0:00:05.1]} 79... Qd1+ {[%clk 0:00:03.9]} 80. Kh2 {[%clk 0:00:05.2]}
80... Qd6+ {[%clk 0:00:04]} 81. Qg3+ {[%clk 0:00:04.5]} 81... Qxg3+ {[%clk
0:00:04]} 82. fxg3+ {[%clk 0:00:05.4]} 82... Kxh5 {[%clk 0:00:04.5]} 83. Kh3
{[%clk 0:00:06.3]} 83... Kg5 {[%clk 0:00:04.8]} 84. g4 {[%clk 0:00:07.2]} 84...
Kg6 {[%clk 0:00:05.1]} 85. Kg3 {[%clk 0:00:08.1]} 85... Kg5 {[%clk 0:00:05.5]}
86. Kf3 {[%clk 0:00:08.3]} 86... Kf6 {[%clk 0:00:05.5]} 87. Kf4 {[%clk
0:00:09.2]} 87... Kg6 {[%clk 0:00:06]} 88. g5 {[%clk 0:00:10.1]} 88... Kg7
{[%clk 0:00:05.3]} 89. Kg4 {[%clk 0:00:11]} 89... Kg6 {[%clk 0:00:05.7]} 90. Kf4
{[%clk 0:00:11.4]} 90... Kg7 {[%clk 0:00:06.5]} 91. Kf5 {[%clk 0:00:12.3]} 91...
Kf7 {[%clk 0:00:06.8]} 92. g6+ {[%clk 0:00:13.2]} 92... Kg7 {[%clk 0:00:07.3]}
93. Kg5 {[%clk 0:00:14]} 93... Kg8 {[%clk 0:00:07.6]} 94. Kf6 {[%clk 0:00:14.9]}
94... Kf8 {[%clk 0:00:07.9]} 95. g7+ {[%clk 0:00:15.7]} 95... Kg8 {[%clk
0:00:08.3]} 96. Kg6 {[%clk 0:00:16.6]} 1/2-1/2